bitfinex/quotes_ETHUSD_20241013
["timestamp","ask_amount","ask_price","bid_price","bid_amount"]
[1728795132474,4.05222,2467.8,2467.6,0.43001214]
[1728795132683,4.05222,2467.8,2467.7,0.12688972]
[1728795132985,4.05222,2467.8,2467.5,0.8328]
[1728795133275,4.05209,2467.9,2467.6,0.12689016]
[1728795133579,4.05209,2467.9,2467.7,0.43000463]
[1728795133884,8.10425,2467.9,2467.5,2.33237632]
[1728795134090,4.05209,2467.9,2467.6,0.43003336]
[1728795134291,4.05209,2467.9,2467.7,0.43003336]
[1728795134589,4.05209,2467.9,2467.5,1.31778501]
[1728795134755,4.05209,2467.9,2467.6,0.43005942]
[1728795134954,4.05209,2467.9,2467.7,0.43005942]
[1728795135164,4.05209,2467.9,2467.5,1.31778501]
[1728795135389,4.05209,2467.9,2467.6,0.43010952]
[1728795135551,4.90393331,2467.9,2467.7,0.43010952]
[1728795135881,4.90393331,2467.9,2467.5,1.31778501]
[1728795136075,4.90393331,2467.9,2467.6,0.43010864]
[1728795136256,4.90393331,2467.9,2467.7,0.43010864]
[1728795136453,4.90393331,2467.9,2467.5,0.8328]
[1728795136994,4.05209,2467.9,2467.6,1.21865646]
[1728795137167,4.05209,2467.9,2467.7,0.43014904]
[1728795137365,4.05209,2467.9,2467.8,0.43021838]
[1728795137723,4.90364257,2467.9,2467.8,0.43021838]
[1728795140494,5.32941885,2467.9,2467.8,0.126889]
[1728795140859,5.32941885,2467.9,2467.8,0.43041457]
[1728795142692,1.27732885,2467.9,2467.8,0.43041457]
[1728795142891,0.85241195,2467.9,2467.8,0.91627646]
[1728795143318,0.85241195,2467.9,2467.8,2.81815586]
[1728795143679,2.1297408,2468.0,2467.8,1.31857954]
[1728795143876,0.85241195,2467.9,2467.8,0.40230308]
[1728795144094,0.85241195,2467.9,2467.8,0.52918568]
[1728795144325,0.85241195,2468.0,2467.8,0.8327849]
[1728795144521,0.85241195,2468.0,2467.9,0.43048182]
[1728795144926,0.85241195,2468.0,2467.9,0.9161721]
[1728795145271,0.85220206,2468.0,2467.9,0.43045548]
[1728795145388,0.85220206,2468.0,2467.9,0.91614276]
[1728795145931,0.85220206,2468.0,2467.9,0.43045548]
[1728795146224,0.85220206,2468.0,2467.9,0.91609637]
[1728795147586,0.85220206,2468.0,2467.8,1.49957632]
[1728795147815,0.85220206,2468.0,2467.9,0.61244151]
[1728795148032,0.85220206,2468.0,2467.9,2.11201783]
[1728795148214,4.90397206,2468.1,2467.9,0.91592015]
[1728795148524,4.90397206,2468.1,2468.0,0.43035432]
[1728795148831,4.90397206,2468.1,2468.0,2.71903064]
[1728795148832,0.85220206,2468.1,2468.0,2.71903064]
[1728795149059,0.85220206,2468.2,2468.0,3.5249368]
[1728795149200,5.32878885,2468.3,2468.1,0.43035432]
[1728795149201,4.90366206,2468.3,2468.1,0.43035432]
[1728795149410,4.90366206,2468.3,2468.2,0.43035432]
[1728795149738,4.90314025,2468.3,2468.2,0.43035432]
[1728795150442,4.90301342,2468.3,2468.2,0.12687205]
[1728795150607,4.90299495,2468.3,2468.2,0.12687205]
[1728795150807,4.90299495,2468.3,2468.2,0.43017477]
[1728795151417,4.90299495,2468.3,2468.0,1.10955519]
[1728795151615,4.90299495,2468.3,2468.1,0.43013399]
[1728795151931,4.90299495,2468.3,2468.0,1.10955519]
[1728795152128,4.90299495,2468.3,2468.1,0.43013675]
[1728795152439,4.90299495,2468.3,2468.2,0.40765039]
[1728795156112,4.05146,2468.3,2468.2,0.40765039]
[1728795179150,4.05146,2468.3,2468.2,2.03409336]
[1728795179361,4.05146,2468.3,2468.2,0.83753364]
[1728795179537,4.05146,2468.3,2468.2,2.03409336]
[1728795180179,4.05146,2468.3,2468.2,2.33711132]
[1728795180540,4.05146,2468.3,2468.2,3.12281132]
[1728795182981,4.05146,2468.3,2468.2,1.623235]
[1728795184714,4.05146,2468.3,2468.2,0.42988461]
[1728795184887,4.05146,2468.3,2468.2,0.4299877]
[1728795185077,4.90274495,2468.4,2468.2,0.4299877]
[1728795185392,4.05137,2468.3,2468.1,0.40386488]
[1728795185592,4.05137,2468.3,2468.2,0.43001846]
[1728795188174,4.90290495,2468.3,2468.2,0.43001846]
[1728795188499,4.90290495,2468.3,2468.2,0.12686804]
[1728795188882,4.90290495,2468.3,2468.2,0.43016126]
[1728795192329,4.90290495,2468.3,2468.2,0.43017803]
[1728795199759,4.90290495,2468.3,2468.2,0.43017854]
[1728795200055,4.05137,2468.3,2468.2,0.43023728]
[1728795200424,5.32869885,2468.3,2468.2,0.43023728]
[1728795201666,4.05137,2468.3,2468.2,0.43023728]
[1728795201854,5.32869885,2468.3,2468.2,0.43023728]
[1728795202436,4.05137,2468.3,2468.2,0.43023728]
[1728795202828,5.32869885,2468.3,2468.2,0.43023728]
[1728795203150,4.05137,2468.3,2468.2,0.43023728]
[1728795203516,5.32869885,2468.3,2468.2,0.43023728]
[1728795203840,4.05137,2468.3,2468.2,0.43023728]
[1728795205489,5.32869885,2468.3,2468.2,0.43023728]
[1728795210759,5.32869885,2468.3,2468.2,0.12686836]
[1728795211062,5.32869885,2468.3,2468.2,0.43028767]
[1728795214553,5.32869885,2468.3,2468.1,0.40386488]
[1728795214752,0.85230219,2468.2,2468.1,0.40386488]
[1728795214957,0.85230219,2468.2,2468.1,0.83416529]
[1728795218403,0.85230219,2468.2,2468.1,0.83416352]
[1728795219789,0.85230219,2468.2,2468.1,0.83416161]
[1728795220404,0.85230219,2468.2,2468.1,1.31964764]
[1728795225086,0.85230219,2468.2,2468.1,2.11284764]
[1728795225290,0.85230219,2468.2,2468.1,2.55902784]
[1728795225586,0.85230219,2468.2,2468.1,1.64324508]
[1728795225792,0.85230219,2468.2,2468.1,1.77011277]
[1728795226135,0.85230219,2468.2,2468.1,2.25558674]
[1728795226508,0.85230219,2468.2,2468.1,2.55900797]
[1728795228620,0.85230219,2468.2,2468.1,4.05858429]
[1728795228935,0.85230219,2468.3,2468.1,4.05858429]
[1728795229097,0.85230219,2468.3,2468.2,1.40655912]
[1728795229294,0.85230219,2468.3,2468.2,3.69933544]
[1728795229502,0.85230219,2468.4,2468.2,3.69929847]
[1728795229695,0.85230219,2468.4,2468.3,3.08164144]
[1728795230921,0.85230219,2468.5,2468.3,2.28844144]
[1728795231132,0.85230219,2468.5,2468.4,3.76471421]
[1728795232308,0.85230219,2468.5,2468.4,3.27925875]
[1728795233602,0.85230219,2468.6,2468.4,3.27925875]
[1728795233827,0.85230219,2468.6,2468.5,1.49957632]
[1728795234028,1.27732885,2468.7,2468.5,1.49957632]
[1728795234229,1.27732885,2468.7,2468.6,0.32792588]
[1728795237108,1.27732885,2468.7,2468.5,1.49957632]
[1728795237432,0.85145437,2468.6,2468.5,1.49957632]
[1728795244514,0.85145437,2468.7,2468.5,1.49957632]
[1728795246117,1.27529443,2468.7,2468.5,1.49957632]
[1728795256749,0.42384006,2468.7,2468.5,1.49957632]
[1728795257067,1.27529443,2468.7,2468.5,1.49957632]
[1728795265813,1.27529443,2468.7,2468.4,2.29277632]
[1728795265982,1.27529443,2468.7,2468.4,0.7932]
[1728795265983,5.32605443,2468.7,2468.4,0.7932]
[1728795266599,5.32605443,2468.7,2468.4,2.29277632]
[1728795267598,1.27529443,2468.7,2468.4,2.29277632]
[1728795270725,1.27529443,2468.7,2468.4,0.7932]
[1728795273034,1.27529443,2468.7,2468.4,2.29277632]
[1728795274308,0.85145437,2468.6,2468.4,2.29277632]
[1728795280195,0.85145437,2468.6,2468.4,0.7932]
[1728795289744,0.85145437,2468.6,2468.5,0.12684892]
[1728795290043,1.70116891,2468.7,2468.5,0.12684892]
[1728795290209,1.70116891,2468.7,2468.6,0.12684892]
[1728795290906,1.70213169,2468.7,2468.6,0.12684892]
[1728795291835,1.70212658,2468.7,2468.6,0.12684892]
[1728795293130,1.70213819,2468.7,2468.6,0.12684892]
[1728795294054,1.70213819,2468.7,2468.6,0.12685024]
[1728795294206,1.70213195,2468.7,2468.6,0.43041614]
[1728795294724,0.42384006,2468.7,2468.6,0.43041614]
[1728795295113,1.70214081,2468.7,2468.6,0.43041614]
[1728795295501,0.42384006,2468.7,2468.6,0.43041614]
[1728795295720,1.70214238,2468.7,2468.6,0.43041614]
[1728795295918,1.70214238,2468.7,2468.6,0.3035659]
[1728795296134,1.70214238,2468.7,2468.6,0.43041611]
[1728795296727,0.42384006,2468.7,2468.6,0.43041611]
[1728795296901,1.7021473,2468.7,2468.6,0.43041611]
[1728795297346,0.42384006,2468.7,2468.6,0.43041611]
[1728795299351,1.70215095,2468.7,2468.6,0.43041611]
[1728795299645,1.70215095,2468.7,2468.6,0.3035659]
[1728795299856,1.70215095,2468.7,2468.4,0.7932]
[1728795300026,1.70215095,2468.7,2468.6,0.30358196]
[1728795300220,1.70215095,2468.7,2468.5,0.1268489]
[1728795300434,0.42384006,2468.7,2468.6,0.43043157]
[1728795300752,1.70214517,2468.7,2468.6,0.43043157]
[1728795306236,1.70214517,2468.7,2468.6,0.43042899]
[1728795309856,1.70214517,2468.7,2468.6,0.12684652]
[1728795310061,1.70214517,2468.7,2468.6,0.43035934]
[1728795313462,1.70214517,2468.7,2468.6,0.30351282]
[1728795313632,1.70214517,2468.7,2468.6,0.43034261]
[1728795316064,5.75285517,2468.7,2468.6,0.43034261]
[1728795316232,4.0514,2468.3,2467.9,2.07233976]
[1728795316420,4.90382508,2468.2,2468.0,0.43054519]
[1728795316624,4.90382508,2468.2,2468.1,0.43054519]
[1728795318260,4.90382508,2468.2,2468.1,0.12686794]
[1728795319931,4.05174,2468.1,2467.9,0.40756765]
[1728795320256,4.05211,2467.9,2467.5,2.34895431]
[1728795320433,4.05211,2467.9,2467.6,0.43026344]
[1728795320638,4.05211,2467.9,2467.7,0.30338007]
[1728795320835,4.05211,2467.9,2467.8,0.12688626]
[1728795321671,4.05211,2467.9,2467.7,0.30330023]
[1728795321958,4.05211,2467.9,2467.5,2.31787632]
[1728795322164,4.05211,2467.9,2467.6,0.43019217]
[1728795322364,4.05211,2467.9,2467.7,0.12688688]
[1728795322520,4.05211,2467.9,2467.6,0.30321619]
[1728795322721,4.05211,2467.9,2467.7,0.12688687]
[1728795322959,4.05211,2467.9,2467.6,0.30321758]
[1728795323171,4.05211,2467.9,2467.7,0.12688687]
[1728795323431,8.10428,2467.9,2467.8,0.39904996]
[1728795325421,4.05211,2467.9,2467.8,0.39904996]
[1728795329689,4.05211,2467.9,2467.5,2.31787632]
[1728795329690,4.05251,2467.7,2467.5,0.8183]
[1728795329992,4.05263,2467.6,2467.3,0.7615]
[1728795330159,8.10527,2467.6,2467.3,2.26107632]
[1728795330343,8.10527,2467.6,2467.3,2.48718395]
[1728795330711,4.05263,2467.6,2467.3,0.98760763]
[1728795330851,4.05272,2467.5,2467.3,0.98760763]
[1728795331047,4.05272,2467.5,2467.4,0.40497138]
[1728795331646,4.05263,2467.6,2467.4,0.40497138]
[1728795337686,8.10529,2467.6,2467.4,0.40497138]
[1728795338075,4.05263,2467.6,2467.4,0.40497138]
[1728795347085,4.05268,2467.5,2467.4,0.40497138]
[1728795347876,4.05263,2467.6,2467.4,0.40497138]
[1728795359475,4.05177375,2467.6,2467.4,0.40497138]
[1728795360379,4.05268,2467.5,2467.4,0.40497138]
[1728795362269,4.05268,2467.5,2467.4,0.53187887]
[1728795362588,4.05268,2467.5,2467.4,0.40497138]
[1728795362891,4.05268,2467.5,2467.4,0.53187891]
[1728795366388,4.05268,2467.5,2467.4,0.40497138]
[1728795366600,4.05268,2467.5,2467.4,0.53187882]
[1728795374480,4.90494508,2467.5,2467.4,0.53187882]
[1728795374978,4.05268,2467.5,2467.4,0.53187882]
[1728795375286,4.90494508,2467.5,2467.4,0.53187882]
[1728795377418,4.90494508,2467.5,2467.4,0.53187996]
[1728795380973,4.90494508,2467.5,2467.4,0.40497138]
[1728795381179,4.90494508,2467.5,2467.4,0.53188001]
[1728795392258,4.90494508,2467.5,2467.4,0.53188004]
[1728795396035,4.90494508,2467.5,2467.4,0.40497138]
[1728795396368,4.90494508,2467.5,2467.4,0.53188055]
[1728795398375,4.05268,2467.5,2467.4,0.12690917]
[1728795398569,6.83091143,2467.5,2467.4,0.12690917]
[1728795398864,7.25678649,2467.5,2467.4,0.12690917]
[1728795399448,4.05322,2467.2,2467.0,0.8247]
[1728795399664,8.10652,2467.2,2467.1,0.12692702]
[1728795400328,8.95883998,2467.2,2467.1,0.53448273]
[1728795400528,8.10652,2467.2,2467.1,0.53448273]
[1728795400757,4.05322,2467.2,2467.1,0.53448273]
[1728795411389,4.05322,2467.2,2467.1,0.53448268]
[1728795415486,4.05322,2467.2,2467.1,0.53447966]
[1728795416592,4.05322,2467.2,2467.1,0.40755571]
[1728795416904,4.05322,2467.2,2467.1,0.53448038]
[1728795422208,4.05317,2467.2,2467.1,0.40755571]
[1728795422362,4.05317,2467.2,2467.1,0.53447921]
[1728795424970,4.05317,2467.2,2467.1,0.83823067]
[1728795426176,4.05317,2467.2,2467.1,0.83823507]
[1728795427582,4.05317,2467.2,2467.1,0.71131144]
[1728795427901,4.05317,2467.2,2467.1,0.83823514]
[1728795435383,4.90532998,2467.3,2467.1,0.83823514]
[1728795435583,4.90532998,2467.3,2467.2,0.1269237]
[1728795437211,4.90532998,2467.3,2467.2,0.43086841]
[1728795437594,4.90532998,2467.3,2467.2,0.30394471]
[1728795437798,4.90532998,2467.3,2467.2,0.30394485]
[1728795438133,4.90532998,2467.3,2467.2,0.4308683]
[1728795441331,4.90532998,2467.3,2467.2,0.30394485]
[1728795441633,4.90532998,2467.3,2467.2,0.43100176]
[1728795442751,4.05301,2467.3,2467.2,0.43100176]
[1728795443615,5.33148997,2467.3,2467.2,0.43100176]
[1728795445267,5.33148997,2467.3,2467.2,0.12692353]
[1728795445421,5.33148997,2467.3,2467.2,0.43120767]
[1728795445914,5.33148997,2467.3,2467.2,0.30428414]
[1728795446122,5.33148997,2467.3,2467.2,0.43120743]
[1728795448868,1.27847997,2467.3,2467.2,1.26260743]
[1728795449048,1.27847997,2467.3,2467.2,1.66451917]
[1728795450671,0.85273664,2467.3,2467.2,1.36023503]
[1728795450846,0.85273664,2467.3,2467.2,1.66449036]
[1728795452668,4.90574664,2467.3,2467.2,1.66448672]
[1728795452970,0.85273664,2467.4,2467.2,2.33266304]
[1728795453295,0.85273664,2467.4,2467.3,1.62153465]
[1728795453431,0.85273664,2467.5,2467.3,1.62153465]
[1728795453631,5.33099997,2467.6,2467.3,1.19035967]
[1728795453632,0.85273664,2467.4,2467.3,1.19035967]
[1728795453868,0.85273664,2467.5,2467.3,1.62139123]
[1728795454071,0.85273664,2467.4,2467.3,1.19035967]
[1728795454248,0.85273664,2467.5,2467.3,1.49447805]
[1728795454575,0.85273664,2467.5,2467.4,0.30411838]
[1728795455184,0.85230332,2467.5,2467.4,0.30411838]
[1728795456876,0.85230332,2467.5,2467.4,1.13551838]
[1728795457166,0.85230332,2467.5,2467.4,1.47511499]
[1728795457380,0.85230332,2467.5,2467.4,2.97469131]
[1728795457539,0.85230332,2467.5,2467.4,1.47511499]
[1728795457740,0.85230332,2467.6,2467.4,1.47511499]
[1728795457973,0.85230332,2467.6,2467.5,0.30411838]
[1728795458170,0.85230332,2467.6,2467.5,0.63748348]
[1728795459044,0.85230332,2467.7,2467.6,0.8314]
[1728795459240,0.85230332,2467.7,2467.6,1.13551838]
[1728795459454,0.85230332,2467.7,2467.6,1.13522216]
[1728795459882,0.85230332,2467.7,2467.6,0.8314]
[1728795460943,4.90465332,2467.7,2467.6,0.8314]
[1728795464065,4.90465332,2467.7,2467.6,1.09783414]
[1728795466485,4.90465332,2467.7,2467.6,0.8314]
[1728795468387,4.05235,2467.7,2467.6,0.8314]
[1728795468694,4.90465332,2467.7,2467.6,0.8314]
[1728795468906,4.05235,2467.7,2467.6,0.8314]
[1728795469199,4.90456332,2467.8,2467.6,0.8314]
[1728795469393,8.95687332,2467.8,2467.6,0.8314]
[1728795469553,4.90456332,2467.8,2467.6,0.8314]
[1728795469751,4.05235,2467.7,2467.6,0.8314]
[1728795484329,4.90465332,2467.7,2467.6,0.8314]
[1728795493695,4.05255,2467.6,2467.4,0.7701]
[1728795493895,4.05255,2467.6,2467.5,0.30379297]
[1728795496341,4.90485332,2467.6,2467.5,0.30379297]
[1728795496542,4.05255,2467.6,2467.5,0.30379297]
[1728795496905,4.90485332,2467.6,2467.5,0.30379297]
[1728795498422,4.90485332,2467.6,2467.5,0.79023263]
[1728795499049,0.85230332,2467.6,2467.5,0.79023263]
[1728795501540,0.85230332,2467.6,2467.4,0.7701]
[1728795501722,0.85230332,2467.6,2467.5,0.79050762]
[1728795505570,0.85230332,2467.6,2467.4,0.7701]
[1728795505868,0.85230332,2467.6,2467.5,0.79071881]
[1728795506351,0.85230332,2467.6,2467.5,3.48227244]
[1728795507274,1.27847997,2467.8,2467.6,0.801]
[1728795507427,1.27847997,2467.9,2467.7,0.79071881]
[1728795507770,5.75624017,2468.1,2467.9,0.801]
[1728795507771,1.27847997,2468.0,2467.9,0.801]
[1728795507921,1.27847997,2468.0,2467.9,1.10512262]
[1728795508128,1.27847997,2468.1,2467.9,1.36559251]
[1728795508330,1.27847997,2468.1,2468.0,0.30412262]
[1728795509349,1.27847997,2468.1,2468.0,0.30379401]
[1728795510278,5.33007997,2468.2,2468.0,0.30379401]
[1728795510447,5.33007997,2468.2,2467.9,1.06146989]
[1728795510656,5.33007997,2468.2,2468.0,0.25610462]
[1728795510862,5.33007997,2468.2,2467.9,0.801]
[1728795514581,9.38171997,2468.2,2467.9,0.801]
[1728795516262,8.10324,2468.2,2467.9,0.801]
[1728795517043,8.10324,2468.2,2467.9,1.20738258]
[1728795517423,8.95423837,2468.2,2467.9,1.20738258]
[1728795517769,0.85099837,2468.1,2467.9,1.20738258]
[1728795517971,0.85099837,2468.1,2467.9,1.47807847]
[1728795518166,8.95423837,2468.2,2467.9,1.47807847]
[1728795518907,4.90259837,2468.2,2467.9,1.47807847]
[1728795521175,4.0516,2468.2,2467.9,1.47807847]
[1728795521884,4.90259837,2468.2,2467.9,1.47807847]
[1728795522079,4.0516,2468.2,2467.9,1.47807847]
[1728795522819,4.90259837,2468.2,2467.9,1.47807847]
[1728795523310,4.0516,2468.2,2467.9,1.47807847]
[1728795535036,2.35057469,2468.3,2467.9,1.47807847]
[1728795540712,2.35057469,2468.3,2467.9,1.20738258]
[1728795540907,6.40206469,2468.3,2467.9,1.20738258]
[1728795543694,2.35057469,2468.3,2467.9,1.20738258]
[1728795545236,0.85099837,2468.2,2467.9,1.20738258]
[1728795546824,0.85099837,2468.2,2468.0,0.12687468]
[1728795547024,0.85099837,2468.2,2467.9,1.20738258]
[1728795547258,0.85099837,2468.2,2468.0,0.12687468]
[1728795547439,0.85099837,2468.2,2467.9,1.20738258]
[1728795547751,0.85099837,2468.2,2468.0,0.43033329]
[1728795547947,0.85099837,2468.2,2467.9,1.20738258]
[1728795548154,0.85099837,2468.2,2468.0,0.43033103]
[1728795548454,0.85099837,2468.2,2467.9,1.20738258]
[1728795548616,0.85099837,2468.2,2468.0,0.43037138]
[1728795548816,0.85099837,2468.2,2467.9,1.20738258]
[1728795549116,0.85099837,2468.2,2468.0,0.43037119]
[1728795549313,0.85099837,2468.2,2467.9,2.33707984]
[1728795549519,0.85099837,2468.2,2468.0,0.43041481]
[1728795549756,0.85099837,2468.2,2467.9,2.33707984]
[1728795549757,0.85099837,2468.2,2467.9,1.20738258]
[1728795549926,0.85099837,2468.2,2468.0,0.43041769]
[1728795550116,0.85099837,2468.2,2467.9,1.20738258]
[1728795550319,0.85099837,2468.2,2468.0,0.43041761]
[1728795550514,0.85099837,2468.2,2468.1,0.12687362]
[1728795551366,0.85099837,2468.2,2467.9,1.20738258]
[1728795551718,0.85099837,2468.2,2468.0,0.43054312]
[1728795551918,0.85099837,2468.2,2468.1,0.43054312]
[1728795552123,2.77805629,2468.3,2468.1,0.43054312]
[1728795552360,2.77805629,2468.3,2467.9,1.20738258]
[1728795552522,0.85188135,2468.1,2468.0,0.43063256]
[1728795553463,0.85188135,2468.1,2468.0,0.43071053]
[1728795558775,0.85188135,2468.1,2467.9,1.20738258]
[1728795559082,0.85188135,2468.1,2468.0,0.43074256]
[1728795559755,0.85188135,2468.1,2468.0,0.43074299]
[1728795569930,0.85188135,2468.1,2468.0,0.3038696]
[1728795570146,0.85188135,2468.1,2468.0,0.43082684]
[1728795574528,0.85188135,2468.1,2468.0,1.24022684]
[1728795574844,0.85188135,2468.1,2468.0,2.04498321]
[1728795575620,0.85188135,2468.2,2468.0,3.54455953]
[1728795575810,0.85188135,2468.3,2468.1,6.80809316]
[1728795576025,0.85188135,2468.3,2468.2,1.25682684]
[1728795576261,0.85188135,2468.4,2468.2,1.25682684]
[1728795576557,0.85188135,2468.4,2468.3,0.43082684]
[1728795577315,0.85188135,2468.4,2468.3,0.43056631]
[1728795577524,0.85188135,2468.4,2468.3,1.11134957]
[1728795578236,0.85188135,2468.5,2468.3,1.11134957]
[1728795578449,0.85188135,2468.5,2468.4,0.43056631]
[1728795580445,2.35145767,2468.5,2468.4,0.43056631]
[1728795580774,1.49957632,2468.5,2467.9,0.40638258]
[1728795580939,5.55114632,2468.2,2468.0,0.43046268]
[1728795581146,10.45432344,2468.2,2468.1,0.43046268]
[1728795581529,10.45432344,2468.2,2468.1,0.12686391]
[1728795581530,6.40267344,2468.2,2468.1,0.12686391]
[1728795582071,4.05186,2468.0,2467.9,0.40638258]
[1728795582367,4.05186,2468.0,2467.9,0.83696924]
[1728795582368,6.40305373,2468.0,2467.9,0.83696924]
[1728795582873,6.40305373,2468.0,2467.9,0.43058666]
[1728795584580,4.90347741,2468.0,2467.9,0.43058666]
[1728795584872,4.90347741,2468.0,2467.9,0.43056924]
[1728795585083,4.90347741,2468.0,2467.9,0.12688045]
[1728795585465,4.90347741,2468.0,2467.7,0.40365571]
[1728795585647,4.90347741,2468.0,2467.8,0.43056991]
[1728795585962,4.90347741,2468.0,2467.7,0.40365571]
[1728795586155,4.90347741,2468.0,2467.8,0.43056876]
[1728795586355,4.90347741,2468.0,2467.7,0.40365571]
[1728795586561,4.90347741,2468.0,2467.8,0.43055479]
[1728795586789,4.90347741,2468.0,2467.7,0.40365571]
[1728795587089,4.90347741,2468.0,2467.8,0.43055459]
[1728795587256,4.90347741,2468.0,2467.7,0.40365571]
[1728795587461,4.90347741,2468.0,2467.8,0.43054533]
[1728795587784,4.90347741,2468.0,2467.7,0.40365571]
[1728795588088,4.90347741,2468.0,2467.8,0.43055632]
[1728795588288,4.90347741,2468.0,2467.7,0.40365571]
[1728795588454,4.90347741,2468.0,2467.8,0.12688388]
[1728795588814,4.90347741,2468.0,2467.7,0.40365571]
[1728795589089,4.90347741,2468.0,2467.8,0.4305363]
[1728795589256,4.90347741,2468.0,2467.7,0.40365571]
[1728795589587,4.90347741,2468.0,2467.8,0.43052658]
[1728795589761,4.90347741,2468.0,2467.7,0.40365571]
[1728795589957,4.90347741,2468.0,2467.8,0.43052317]
[1728795590157,4.90347741,2468.0,2467.7,0.40365571]
[1728795590462,4.90347741,2468.0,2467.8,0.43051321]
[1728795590662,4.90347741,2468.0,2467.7,0.40365571]
[1728795590865,4.90347741,2468.0,2467.8,0.43051221]
[1728795591194,4.90347741,2468.0,2467.7,0.40365571]
[1728795591349,4.90347741,2468.0,2467.8,0.43050152]
[1728795591541,4.90347741,2468.0,2467.7,0.40365571]
[1728795591786,4.90347741,2468.0,2467.8,0.43050134]
[1728795591985,4.90347741,2468.0,2467.7,0.40365571]
[1728795592296,4.90347741,2468.0,2467.8,0.1268841]
[1728795592450,4.90347741,2468.0,2467.8,0.30360513]
[1728795592679,4.90347741,2468.0,2467.7,0.40365571]
[1728795593005,4.90347741,2468.0,2467.8,0.43048949]
[1728795593214,4.90347741,2468.0,2467.7,0.40365571]
[1728795593370,4.90347741,2468.0,2467.8,0.43047679]
[1728795593570,4.90347741,2468.0,2467.7,0.40365571]
[1728795593815,4.90347741,2468.0,2467.8,0.43047595]
[1728795594025,4.90347741,2468.0,2467.7,0.40365571]
[1728795594322,4.90347741,2468.0,2467.8,0.43046477]
[1728795594487,4.90347741,2468.0,2467.7,0.40365571]
[1728795594814,4.90347741,2468.0,2467.8,0.43046492]
[1728795595110,4.90347741,2468.0,2467.7,0.40365571]
[1728795595282,4.90347741,2468.0,2467.8,0.43045216]
[1728795595622,4.90347741,2468.0,2467.7,0.40365571]
[1728795595832,4.90347741,2468.0,2467.8,0.43045567]
[1728795596117,4.90347741,2468.0,2467.7,0.40365571]
[1728795596302,4.90347741,2468.0,2467.8,0.12688405]
[1728795596509,4.90347741,2468.0,2467.8,0.30356313]
[1728795596674,4.90347741,2468.0,2467.7,0.40365571]
[1728795596876,4.90347741,2468.0,2467.8,0.43044729]
[1728795597191,4.90347741,2468.0,2467.7,0.40365571]
[1728795597397,4.90347741,2468.0,2467.8,0.43043927]
[1728795597599,4.90347741,2468.0,2467.7,0.40365571]
[1728795597904,4.90347741,2468.0,2467.8,0.43043867]
[1728795598105,4.90347741,2468.0,2467.7,0.40365571]
[1728795598413,4.05186,2468.0,2467.8,0.43042416]
[1728795598572,4.05186,2468.0,2467.8,0.7647]
[1728795601630,4.05186,2468.0,2467.7,0.97657891]
[1728795602099,4.05186,2468.0,2467.8,0.43038946]
[1728795602300,4.05186,2468.0,2467.7,0.97657891]
[1728795602535,4.05186,2468.0,2467.8,0.75446885]
[1728795602727,4.05186,2468.0,2467.8,0.32408552]
[1728795603301,0.85161741,2468.1,2467.8,0.32408552]
[1728795603502,4.90336741,2468.1,2467.8,0.7647]
[1728795603905,4.90336741,2468.1,2467.9,0.12688012]
[1728795604104,0.85161741,2468.1,2467.8,0.7647]
[1728795604622,4.90333741,2468.1,2467.9,0.1268801]
[1728795604828,4.90333741,2468.1,2467.8,0.7647]
[1728795605034,0.85161741,2468.1,2467.9,0.12688001]
[1728795605194,0.85161741,2468.1,2467.8,1.08878552]
[1728795605396,0.85161741,2468.1,2467.9,0.12688001]
[1728795605594,0.85161741,2468.1,2467.8,1.08878552]
[1728795605797,0.85161741,2468.1,2467.9,0.12688]
[1728795606011,0.85161741,2468.1,2467.8,1.08878552]
[1728795606728,0.85161741,2468.1,2467.9,0.12688]
[1728795606935,0.85161741,2468.1,2467.8,1.08878552]
[1728795607091,0.85161741,2468.1,2467.9,0.20653644]
[1728795607425,4.90318741,2468.2,2467.9,0.20653644]
[1728795609189,4.90318741,2468.2,2467.8,1.08878552]
[1728795609389,4.90318741,2468.2,2467.9,0.12687935]
[1728795609630,4.90318741,2468.2,2467.8,1.08878552]
[1728795609789,4.90318741,2468.2,2467.9,0.12687934]
[1728795609990,4.90318741,2468.2,2467.8,0.7647]
[1728795610296,4.90318741,2468.2,2467.9,0.12687934]
[1728795610520,4.90318741,2468.2,2467.8,1.49403552]
[1728795610722,4.90318741,2468.2,2467.9,0.12687934]
[1728795611035,4.90318741,2468.2,2467.8,1.49403552]
[1728795611235,4.90318741,2468.2,2467.9,0.12687934]
[1728795611399,4.90318741,2468.2,2467.8,1.49403552]
[1728795611696,4.90318741,2468.2,2467.9,0.57245081]
[1728795611897,4.90318741,2468.2,2467.8,1.49403552]
[1728795612106,4.90318741,2468.2,2467.9,0.12687936]
[1728795612293,4.90318741,2468.2,2467.8,1.49403552]
[1728795612594,4.90318741,2468.2,2467.9,0.12687934]
[1728795612930,4.90318741,2468.2,2467.8,1.49403552]
[1728795613231,4.90318741,2468.2,2467.9,0.12687934]
[1728795613432,4.90318741,2468.2,2467.8,1.49403552]
[1728795613637,4.90318741,2468.2,2467.9,0.12687933]
[1728795613845,4.90318741,2468.2,2467.8,1.49403552]
[1728795614133,4.90318741,2468.2,2467.9,0.12687935]
[1728795614334,4.90318741,2468.2,2467.8,1.49403552]
[1728795614537,4.90318741,2468.2,2467.9,0.12687932]
[1728795614839,4.90318741,2468.2,2467.8,1.49403552]
[1728795615167,4.90318741,2468.2,2467.9,0.12687934]
[1728795615317,8.95481741,2468.2,2467.8,1.49403552]
[1728795615502,8.95481741,2468.2,2467.9,0.12687934]
[1728795615835,8.95481741,2468.2,2467.8,1.49403552]
[1728795616038,8.95481741,2468.2,2467.9,0.12687938]
[1728795616336,8.95481741,2468.2,2467.8,1.49403552]
[1728795616546,8.95481741,2468.2,2467.9,0.12687932]
[1728795616697,8.95481741,2468.2,2467.8,0.7647]
[1728795616897,8.95481741,2468.2,2467.9,0.12687725]
[1728795617199,8.95481741,2468.2,2467.8,0.7647]
[1728795617532,8.95481741,2468.2,2467.9,0.12687661]
[1728795617698,8.95481741,2468.2,2467.8,0.7647]
[1728795617898,8.95481741,2468.2,2467.9,0.12687724]
[1728795618100,8.95481741,2468.2,2467.8,1.54258869]
[1728795618301,8.95481741,2468.2,2467.9,0.12687662]
[1728795618519,8.95481741,2468.2,2467.8,1.54258869]
[1728795618720,8.95481741,2468.2,2467.9,0.12687663]
[1728795618963,8.95481741,2468.2,2467.8,0.7647]
[1728795619142,8.95481741,2468.2,2467.9,0.12687662]
[1728795619312,8.95481741,2468.2,2467.8,1.542589]
[1728795619499,8.95481741,2468.2,2467.9,0.12687729]
[1728795619700,8.95481741,2468.2,2467.8,0.7647]
[1728795620034,8.95481741,2468.2,2467.9,0.1268773]
[1728795620202,8.95481741,2468.2,2467.8,0.7647]
[1728795620402,8.95481741,2468.2,2467.9,0.12687705]
[1728795620597,8.95481741,2468.2,2467.8,0.7647]
[1728795620832,8.95481741,2468.2,2467.9,0.12687706]